fUSD/lending_fUSD_20240609
["ID","MTS","AMOUNT","RATE_DAILY","PERIOD"]
[328879145,1717947032892,-37996.0,0.00018524,2]
[328879146,1717947032902,-615.0,0.00018524,2]
[328879147,1717947032912,-1649.0,0.00018524,2]
[328879148,1717947032923,-2357.0,0.000198,2]
[328879149,1717947032933,-11725.0,0.000213,5]
[328879150,1717947032943,-327.62,0.00024043,2]
[328879151,1717947032955,-1362.92,0.000241,2]
[328879152,1717947032967,-153.37,0.00024384,2]
[328879153,1717947032978,-198.0,0.00024384,2]
[328879154,1717947032989,-7175.0416,0.000249,2]
[328879155,1717947033000,-407.02672968,0.00024995,2]
[328879156,1717947033011,-14470.49920023,0.00025,2]
[328879157,1717947033022,-23977.58431279,0.00025,2]
[328879158,1717947033033,-1000.0,0.00025696,2]
[328879159,1717947033045,-250.0,0.00025754,2]
[328879160,1717947033057,-361.71,0.00025757,2]
[328879161,1717947033067,-250.0,0.00025792,2]
[328879162,1717947033079,-250.0,0.00025865,2]
[328879163,1717947033088,-550.33,0.00025877,2]
[328879164,1717947033097,-155.59731535,0.00026157,2]
[328879165,1717947033108,-152.12070029,0.00026229,2]
[328879166,1717947033121,-155.59731535,0.00026239,2]
[328879167,1717947033132,-158.90369129,0.00026276,2]
[328879168,1717947033142,-327.62,0.00026307,2]
[328879169,1717947033154,-158.90369129,0.00026328,2]
[328879170,1717947033163,-155.59731535,0.0002639,2]
[328879171,1717947033173,-155.59731535,0.00026499,2]
[328879172,1717947033183,-155.59731535,0.00026634,2]
[328879173,1717947033193,-155.59731535,0.00026775,2]
[328879174,1717947033204,-155.59731535,0.00026788,2]
[328879175,1717947033214,-152.12070029,0.00026797,2]
[328879176,1717947033225,-152.12070029,0.00026804,2]
[328879177,1717947033235,-155.59731535,0.00026859,2]
[328879178,1717947033245,-155.59731535,0.00026926,2]
[328879179,1717947033256,-150.0,0.00027,2]
[328879180,1717947033266,-200.0,0.00027,2]
[328879181,1717947033278,-17796.04120922,0.00027,2]
[328879182,1717947033289,-152.12070029,0.00027043,2]
[328879183,1717947033300,-155.59731535,0.00027082,2]
[328879184,1717947033310,-4029.88662948,0.00027247,2]
[328879185,1717947033321,-859.32,0.00027248,3]
[328879186,1717947033332,-194.1751,0.00027259,2]
[328879187,1717947033342,-2500.0,0.00027259,2]
[328879188,1717947033353,-1520.81765202,0.00027259,2]
[328879189,1717947033363,-2230.94845715,0.00027259,2]
[328879190,1717947033373,-11588.3182,0.00027359,2]
[328879191,1717947033384,-50181.91446728,0.00027359,2]
[328879192,1717947033402,-6160.39373051,0.00027359,2]
[328879193,1717947033414,-2993.24310221,0.00027359,2]
[328879194,1717947033424,-150.0,0.00027397,2]
[328879195,1717947033434,-442.86657679,0.00027397,10]
[328879214,1717947043901,-1203.53154072,0.00017258,2]
[328879215,1717947043911,-2404.0,0.00018524,2]
[328879216,1717947043923,-165.0,0.00018524,2]
[328879217,1717947043933,-374.72342321,0.00027397,10]
[328879218,1717947043944,-260.5,0.000274,2]
[328879219,1717947043954,-152.12070029,0.00027401,2]
[328879220,1717947043965,-159.42930009,0.00027483,2]
[328879221,1717947043975,-2230.94845706,0.00027552,2]
[328879222,1717947043985,-509.070165,0.00027559,2]
[328879223,1717947043996,-180.880195,0.00027559,2]
[328879224,1717947044007,-190.026319,0.00027559,2]
[328879225,1717947044018,-182.375534,0.00027559,2]
[328879226,1717947044028,-2154.856465,0.00027559,2]
[328879227,1717947044039,-1839.429719,0.00027559,2]
[328879228,1717947044049,-185.239224,0.00027559,2]
[328879229,1717947044059,-217.134621,0.00027559,2]
[328879230,1717947044238,-2460.42645,0.00027559,2]
[328879231,1717947044294,-150.50249671,0.00027579,2]
[328879232,1717947044304,-155.59731535,0.00027605,2]
[328879233,1717947044314,-1299.84451728,0.00027672,2]
[328879234,1717947044324,-6463.0961,0.00027801,2]
[328879235,1717947044333,-326.13339256,0.00027804,2]
[328879236,1717947044343,-1520.81765199,0.00027846,2]
[328879237,1717947044353,-2230.94845706,0.00027846,2]
[328879238,1717947044363,-155.59731535,0.00027893,2]
[328879239,1717947044372,-266.10450733,0.000279,2]
[328879240,1717947044382,-500.0,0.000279,2]
[328879241,1717947044395,-260.96588409,0.000279,2]
[328879242,1717947044405,-500.0,0.000279,2]
[328879243,1717947044415,-198.88424228,0.000279,2]
[328879244,1717947044425,-558.00751793,0.000279,2]
[328879245,1717947044435,-145871.65387076,0.00027901,2]
[328879246,1717947044465,-3690.19942189,0.00027901,2]
[328879247,1717947044478,-9028.43166335,0.00027901,2]
[328879248,1717947044763,-708.85708297,0.00019864,2]
[328879249,1717947044776,-99.14291703,0.00019864,2]
[328879250,1717947044785,-731.22207683,0.00027901,2]
[328879251,1717947044798,-369.39499999,0.00027901,2]
[328879306,1717947047025,-1203.53154072,0.00017258,2]
[328879308,1717947047035,-35671.29665291,0.00027901,2]
[328879523,1717947223715,50000.0,0.00014,2]
[328879524,1717947223751,1220458.25442123,0.00014,2]
[328879525,1717947244563,5843.39407327,0.000118,2]
[328879527,1717947251082,783.17738963,0.00011,2]
[328879531,1717947350061,2401.73426047,0.00011,2]
[328879532,1717947398394,6000.0,0.00015,2]
[328879533,1717947398422,248971.18334887,0.00015,2]
[328879566,1717948233647,-1302.30583545,0.00017237,2]
[328879567,1717948233657,-522.53327726,0.00017238,2]
[328879568,1717948233668,-535.41970351,0.00017239,2]
[328879569,1717948233678,-1573.79,0.00017259,2]
[328879570,1717948233689,-579.16614712,0.00019913,7]
[328879571,1717948233699,-931.496,0.00019914,2]
[328879572,1717948233713,-203.0,0.00019914,2]
[328879573,1717948233724,-446.0,0.00019914,2]
[328879574,1717948233734,-758.19,0.00019914,2]
[328879575,1717948233745,-708.426,0.00019914,2]
[328879576,1717948233755,-2709.100477,0.00019914,2]
[328879577,1717948233768,-2431.899523,0.00019914,2]
[328879578,1717948233778,-19494.41,0.00019914,2]
[328879579,1717948233789,-150.302,0.00019914,2]
[328879580,1717948233799,-226.67450997,0.000201,2]
[328879581,1717948233809,-7481.50567006,0.000213,5]
[328879582,1717948233822,-1406.49432994,0.000213,5]
[328879583,1717948233832,-381.7,0.00023439,2]
[328879584,1717948233842,-2968.36286544,0.000236,2]
[328879585,1717948233852,-153.12,0.00024384,2]
[328879586,1717948233863,-156.5803339,0.00024998,2]
[328879587,1717948233873,-14470.49920023,0.00025,2]
[328879588,1717948233883,-1250.0,0.00025,2]
[328879589,1717948233892,-23977.58431279,0.00025,2]
[328879591,1717948233902,-250.0,0.0002503,2]
[328879593,1717948233912,-211.525,0.00025052,2]
[328879595,1717948233922,-224.32,0.00025055,2]
[328879596,1717948233932,-250.0,0.00025078,2]
[328879597,1717948233942,-250.0,0.00025121,2]
[328879598,1717948233952,-440.53,0.00025175,2]
[328879599,1717948233962,-17784.5,0.00025179,2]
[328879600,1717948233972,-152.22,0.0002526,2]
[328879601,1717948233982,-200.0,0.00025312,2]
[328879602,1717948233992,-169.78,0.00025366,2]
[328879603,1717948234006,-157.42,0.00025461,2]
[328879604,1717948234016,-381.7,0.00025703,2]
[328879605,1717948234027,-154.46740009,0.00026009,2]
[328879606,1717948234036,-152.85427655,0.00026019,2]
[328879607,1717948234047,-156.02019916,0.00026028,2]
[328879608,1717948234057,-154.46740009,0.00026041,2]
[328879609,1717948234066,-158.08203131,0.00026061,2]
[328879610,1717948234078,-154.83037784,0.00026071,2]
[328879611,1717948234088,-158.07721268,0.00026101,2]
[328879612,1717948234099,-167.24,0.00026136,2]
[328879613,1717948234109,-156.83265138,0.00026162,2]
[328879614,1717948234118,-153.34121951,0.00026182,2]
[328879615,1717948234128,-152.85427655,0.00026215,2]
[328879616,1717948234138,-752.03196948,0.00026215,2]
[328879617,1717948234147,-155.0,0.00026215,2]
[328879618,1717948234157,-160.79106966,0.00026251,2]
[328879619,1717948234167,-154.02592654,0.00026264,2]
[328879620,1717948234176,-153.34121951,0.00026267,2]
[328879621,1717948234190,-155.11879655,0.00026325,2]
[328879622,1717948234200,-153.34121951,0.00026336,2]
[328879623,1717948234210,-4964.94,0.00026351,2]
[328879624,1717948234219,-152.85427655,0.00026416,2]
[328879625,1717948234229,-153.34121951,0.00026474,2]
[328879626,1717948234239,-154.83037784,0.00026495,2]
[328879627,1717948234248,-155.89407699,0.00026513,2]
[328879628,1717948234259,-152.0,0.00026528,3]
[328879629,1717948234269,-155.89407699,0.00026546,2]
[328879630,1717948234469,-155.11879655,0.00026568,2]
[328879631,1717948234479,-155.89407699,0.00026648,2]
[328879632,1717948234489,-154.46740009,0.00026664,2]
[328879633,1717948234499,-155.89407699,0.00026675,2]
[328879634,1717948234509,-154.46740009,0.00026682,2]
[328879635,1717948234519,-155.11879655,0.00026713,2]
[328879636,1717948234528,-154.46740009,0.00026735,2]
[328879637,1717948234539,-154.46740009,0.00026756,2]
[328879638,1717948234550,-153.34121951,0.00026828,2]
[328879639,1717948234560,-156.83265138,0.00026871,2]
[328879640,1717948234571,-155.89407699,0.00026924,2]
[328879641,1717948234580,-153.34121951,0.00026954,2]
[328879642,1717948234590,-4909.28,0.00026986,2]
[328879643,1717948234599,-160.79106966,0.00026998,2]
[328879644,1717948234609,-17796.04120922,0.00027,2]
[328879645,1717948234620,-4029.88662948,0.00027,2]
[328879646,1717948234630,-1300.0,0.00027,2]
[328879647,1717948234640,-156.45762046,0.00027,4]
[328879648,1717948234650,-486.21,0.00027026,2]
[328879649,1717948234660,-156.83265139,0.0002705,2]
[328879650,1717948234669,-154.8980152,0.00027059,2]
[328879651,1717948234679,-154.46740009,0.00027137,2]
[328879652,1717948234689,-158.07721268,0.00027146,2]
[328879653,1717948234699,-2010.60105363,0.000272,2]
[328879654,1717948234709,-152.85427655,0.00027232,2]
[328879655,1717948234719,-2209.15654257,0.00027297,2]
[328879656,1717948234729,-1399.07682137,0.00027346,2]
[328879657,1717948234739,-155.89407699,0.00027355,2]
[328879658,1717948234748,-438.112191,0.0002739,2]
[328879659,1717948234759,-153.34121951,0.00027392,2]
[328879660,1717948234769,-150.0,0.00027397,2]
[328879661,1717948234779,-2309.0,0.000274,2]
[328879662,1717948234789,-21528.4803,0.000274,2]
[328879663,1717948234799,-2485.4991372,0.000274,2]
[328879664,1717948234809,-158.08203131,0.00027446,2]
[328879665,1717948234819,-381.76420571,0.00027479,2]
[328879666,1717948234830,-155.89407699,0.00027491,2]
[328879667,1717948234840,-65904.0,0.000275,2]
[328879668,1717948234849,-162.90610215,0.00027508,2]
[328879669,1717948234859,-150.0,0.00027534,2]
[328879670,1717948234869,-155.11879658,0.00027555,2]
[328879671,1717948234879,-153.871108,0.00027559,2]
[328879672,1717948234889,-294.026462,0.00027559,2]
[328879673,1717948234900,-430.971293,0.00027559,2]
[328879674,1717948234911,-217.134625,0.00027559,2]
[328879675,1717948234921,-367.885943,0.00027559,2]
[328879676,1717948234931,-185.239224,0.00027559,2]
[328879677,1717948234941,-492.08529,0.00027559,2]
[328879678,1717948234951,-190.026319,0.00027559,2]
[328879679,1717948234961,-180.880196,0.00027559,2]
[328879680,1717948234971,-182.375534,0.00027559,2]
[328879681,1717948234981,-169.690056,0.00027559,2]
[328879682,1717948234991,-156.075486,0.00027559,2]
[328879683,1717948235005,-171.375081,0.00027559,2]
[328879684,1717948235015,-639.777427,0.00027559,2]
[328879685,1717948235025,-589.527706,0.00027559,2]
[328879686,1717948235036,-153.34121951,0.00027562,2]
[328879687,1717948235046,-412.75360643,0.00027581,2]
[328879688,1717948235056,-2209.15654254,0.00027586,2]
[328879689,1717948235076,-1399.07682133,0.0002763,2]
[328879690,1717948235088,-153.98333906,0.00027654,2]
[328879691,1717948235100,-155.89407699,0.00027662,2]
[328879692,1717948235110,-6463.0961,0.00027701,2]
[328879693,1717948235121,-322.32472637,0.00027714,2]
[328879694,1717948235134,-1077.55310241,0.00027714,2]
[328879695,1717948235145,-153.9126031,0.00027788,2]
[328879696,1717948235155,-229.5,0.00027791,2]
[328879697,1717948235167,-229.5,0.00027791,2]
[328879698,1717948235178,-245000.0,0.00027801,2]
[328879699,1717948235192,-500.0,0.00027809,2]
[328879700,1717948235203,-448.38891375,0.00027809,2]
[328879701,1717948235214,-500.0,0.00027809,2]
[328879702,1717948235224,-500.0,0.00027809,2]
[328879703,1717948235236,-500.0,0.00027809,2]
[328879704,1717948235245,-500.0,0.00027809,2]
[328879705,1717948235256,-387.32137337,0.00027809,2]
[328879706,1717948235266,-500.0,0.00027809,2]
[328879707,1717948235277,-500.0,0.00027809,2]
[328879708,1717948235288,-328.4857095,0.00027809,2]
[328879709,1717948235299,-500.0,0.00027809,2]
[328879710,1717948235309,-500.0,0.00027809,2]
[328879711,1717948235319,-500.0,0.00027809,2]
[328879712,1717948235330,-500.0,0.00027809,2]
[328879713,1717948235341,-159.12651694,0.00027814,2]
[328879714,1717948235352,-4805.89,0.00027828,2]
[328879715,1717948235363,-154.02592654,0.0002783,2]
[328879716,1717948235374,-2209.15654254,0.00027875,2]
[328879717,1717948235384,-154.46740009,0.00027876,2]
[328879718,1717948235394,-154.02592654,0.00027878,2]
[328879719,1717948235404,-180.0,0.00027893,2]
[328879720,1717948235415,-159.12651695,0.00027894,2]
[328879721,1717948235425,-266.10450733,0.000279,2]
[328879722,1717948235435,-545.28416488,0.000279,10]
[328879723,1717948235450,-7152.82150523,0.000279,10]
[328879727,1717948244148,-404.2234726,0.00017236,2]
[328879731,1717948244161,-481.76024222,0.00017236,2]
[328879734,1717948244171,-150.844,0.00019914,2]
[328879736,1717948244181,-610.18,0.00027397,10]
[328879737,1717948244191,-2000.0,0.000274,2]
[328879738,1717948244201,-14.61262729,0.000279,10]
[328879739,1717948244210,-1202.87340608,0.00027901,2]
[328879740,1717948244220,-446.97972469,0.00027901,2]
[328879741,1717948244230,-34985.38247423,0.00027901,2]
[328879742,1717948244240,-1277.52183,0.00027901,2]
[328879743,1717948244250,-509.070165,0.00027904,2]
[328879744,1717948244259,-2154.856465,0.00027904,2]
[328879745,1717948244269,-1839.429719,0.00027904,2]
[328879746,1717948244280,-217.134621,0.00027904,2]
[328879747,1717948244290,-2460.42645,0.00027904,2]
[328879748,1717948244300,-294.026462,0.00027904,2]
[328879749,1717948244310,-430.971293,0.00027904,2]
[328879750,1717948244320,-367.885943,0.00027904,2]
[328879751,1717948244330,-492.08529,0.00027904,2]
[328879752,1717948244340,-639.777427,0.00027904,2]
[328879753,1717948244350,-589.527706,0.00027904,2]
[328879754,1717948244360,-4815.4,0.00027911,2]
[328879755,1717948244370,-1399.07682133,0.00027914,2]
[328879756,1717948244380,-440.53,0.00027915,2]
[328879757,1717948244392,-452.6639156,0.00027917,2]
[328879758,1717948244402,-155.89407699,0.00027933,2]
[328879759,1717948244412,-324.40312278,0.00027963,2]
[328879760,1717948244422,-381.7,0.00027967,2]
[328879761,1717948244433,-153.34121951,0.00027983,2]
[328879762,1717948244443,-155.89407699,0.00027986,2]
[328879763,1717948244455,-201.39732545,0.0002799,2]
[328879764,1717948244465,-154.46740009,0.00027995,2]
[328879765,1717948244475,-201.29519189,0.00028,2]
[328879766,1717948244485,-5001.36,0.00028,2]
[328879767,1717948244495,-192.3159761,0.00028,2]
[328879768,1717948244504,-192.3159761,0.00028,2]
[328879769,1717948244515,-192.3159761,0.00028,2]
[328879770,1717948244525,-192.3159761,0.00028,2]
[328879771,1717948244535,-192.3159761,0.00028,2]
[328879772,1717948244546,-53861.93294409,0.00028,3]
[328879773,1717948244555,-182.375534,0.00028018,2]
[328879774,1717948244566,-185.239224,0.00028018,2]
[328879775,1717948244575,-1077.55310238,0.00028026,2]
[328879776,1717948244586,-154.02592654,0.00028031,2]
[328879777,1717948244597,-154.02592654,0.00028077,2]
[328879778,1717948244607,-181.21151303,0.00028087,2]
[328879779,1717948244617,-154.46740009,0.00028088,2]
[328879780,1717948244627,-150.0,0.00028118,2]
[328879781,1717948244637,-152.85427655,0.00028135,2]
[328879782,1717948244647,-154.02592654,0.00028137,2]
[328879783,1717948244656,-2209.15654254,0.00028165,2]
[328879784,1717948244666,-452.66391556,0.00028195,2]
[328879785,1717948244676,-1399.07682133,0.00028197,2]
[328879786,1717948244686,-154.02592654,0.00028219,2]
[328879787,1717948244696,-229.5,0.00028238,2]
[328879788,1717948244708,-509.070165,0.00028248,2]
[328879789,1717948244718,-180.880195,0.00028248,2]
[328879790,1717948244729,-2154.856465,0.00028248,2]
[328879791,1717948244739,-1839.429719,0.00028248,2]
[328879792,1717948244749,-217.134621,0.00028248,2]
[328879793,1717948244759,-2460.42645,0.00028248,2]
[328879794,1717948244770,-294.026462,0.00028248,2]
[328879795,1717948244782,-430.971293,0.00028248,2]
[328879796,1717948244792,-367.885943,0.00028248,2]
[328879797,1717948244804,-492.08529,0.00028248,2]
[328879798,1717948244815,-169.690056,0.00028248,2]
[328879799,1717948244827,-639.777427,0.00028248,2]
[328879800,1717948244837,-589.527706,0.00028248,2]
[328879801,1717948244848,-938.60119083,0.00028339,2]
[328879802,1717948244861,-138.95191155,0.00028339,2]
[328879803,1717948244872,-112.8647164,0.00028356,2]
[328879804,1717948244884,-413.2052836,0.00028356,2]
[328879805,1717948244894,-150.0,0.00028356,2]
[328879806,1717948244904,-353.2,0.00028356,2]
[328879807,1717948244915,-422.39,0.00028356,2]
[328879808,1717948244926,-164.17,0.00028356,2]
[328879809,1717948244936,-300.0,0.00028356,2]
[328879810,1717948244946,-150.0,0.00028356,2]
[328879811,1717948244956,-150.0,0.00028356,2]
[328879812,1717948244966,-150.0,0.00028356,2]
[328879813,1717948244976,-842.87,0.00028356,2]
[328879814,1717948244986,-1045.77,0.00028356,2]
[328879815,1717948244996,-150.0,0.00028356,2]
[328879816,1717948245009,-164.17,0.00028356,2]
[328879817,1717948245019,-300.0,0.00028356,2]
[328879818,1717948245028,-353.37,0.00028356,2]
[328879819,1717948245038,-163.17,0.00028356,2]
[328879820,1717948245049,-353.37,0.00028356,2]
[328879821,1717948245058,-349.82,0.00028356,2]
[328879822,1717948245069,-1045.86967361,0.00028454,2]
[328879823,1717948245085,-1163.28686893,0.00028454,2]
[328879824,1717948245096,-153.34121951,0.00028454,2]
[328879825,1717948245106,-162.93664975,0.00028466,30]
[328879827,1717948245115,-500.0,0.00028473,2]
[328879828,1717948245125,-452.66391556,0.00028474,2]
[328879830,1717948245134,-200.0,0.00028476,2]
[328879832,1717948245144,-182.375534,0.00028478,2]
[328879834,1717948245154,-185.239224,0.00028478,2]
[328879836,1717948245163,-1399.07682133,0.00028481,2]
[328879838,1717948245173,-1000.0,0.000285,2]
[328879840,1717948245183,-154.02592654,0.0002852,2]
[328879841,1717948245194,-12606.21342951,0.00028535,2]
[328879842,1717948245257,-2110.47707049,0.00028535,2]
[328879843,1717948245268,-153.98333906,0.00028547,2]
[328879844,1717948245278,-154.46740009,0.00028574,2]
[328879845,1717948245287,-428.66488032,0.00028593,2]
[328879846,1717948245300,-80.40528468,0.00028593,2]
[328879847,1717948245310,-1489.7296146,0.00028593,2]
[328879848,1717948245323,-665.1268504,0.00028593,2]
[328879849,1717948245333,-1839.429719,0.00028593,2]
[328879850,1717948245343,-217.134621,0.00028593,2]
[328879851,1717948245353,-2460.42645,0.00028593,2]
[328879852,1717948245362,-294.026462,0.00028593,2]
[328879853,1717948245373,-430.971293,0.00028593,2]
[328879854,1717948245382,-367.885943,0.00028593,2]
[328879855,1717948245393,-492.08529,0.00028593,2]
[328879856,1717948245403,-639.777427,0.00028593,2]
[328879857,1717948245413,-589.527706,0.00028593,2]
[328879858,1717948245423,-152.85427655,0.00028596,2]
[328879859,1717948245433,-243.0,0.0002862,5]
[328879860,1717948245443,-277.0034,0.00028626,2]
[328879861,1717948245453,-1000.0,0.00028626,2]
[328879862,1717948245464,-1077.55310238,0.00028651,2]
[328879863,1717948245474,-234.53919679,0.000287,2]
[328879864,1717948245484,-185.61446945,0.00028703,2]
[328879865,1717948245493,-162.24443644,0.00028707,2]
[328879866,1717948245504,-154.46740009,0.00028713,2]
[328879867,1717948245515,-2209.15654254,0.00028743,2]
[328879868,1717948245524,-452.66391556,0.00028752,2]
[328879869,1717948245534,-1399.07682133,0.00028765,2]
[328879870,1717948245545,-151.84,0.0002879,2]
[328879871,1717948245554,-229.5,0.0002879,2]
[328879872,1717948245565,-229.5,0.0002879,2]
[328879873,1717948245575,-229.5,0.0002879,2]
[328879874,1717948245585,-229.5,0.0002879,2]
[328879875,1717948245594,-229.5,0.0002879,2]
[328879876,1717948245605,-229.5,0.0002879,2]
[328879877,1717948245615,-229.5,0.0002879,2]
[328879878,1717948245624,-65810.35768972,0.000288,13]
[328879879,1717948245636,-695.78167097,0.000288,13]
[328879880,1717948245648,-53643.15023987,0.000288,13]
[328879881,1717948245659,-391.52845119,0.000288,2]
[328879882,1717948245668,-362874.60595267,0.000288,2]
[328879883,1717948246055,-3023.72766417,0.000288,2]
[328879891,1717948247819,-151.273,0.00019914,2]
[328879892,1717948247830,-522.53327726,0.00027399,2]
[328879893,1717948247841,-135.88317274,0.000279,2]
[328879894,1717948247855,-130.22133459,0.000279,2]
[328879895,1717948247865,-4070.62610994,0.00028799,2]
[328879896,1717948248689,-1463.87920513,0.00028799,2]
[328879898,1717948248701,-2648.93590099,0.00028799,2]
[328879907,1717948280366,500.0,0.00015,2]
[328879908,1717948280753,500.0,0.00015,2]
[328879909,1717948281136,500.0,0.00015,2]
[328879910,1717948281505,500.0,0.00015,2]
[328879911,1717948281862,500.0,0.00015,2]
[328879912,1717948282231,724.0,0.00015,2]
[328879914,1717948299514,34985.38247423,0.00015,2]
[328879915,1717948315443,692.61436295,0.00015,2]
[328879917,1717948535846,-792.34288822,0.00017245,2]
[328879918,1717948535875,-1007.65711178,0.00017246,2]
[328879919,1717948890917,150.0,0.00028969,120]
[328879920,1717949010777,150.0,0.00029977,120]
[328879922,1717949132861,150.0,0.00029874,120]
[328879923,1717949233127,-1000.0,0.00017184,2]
[328879924,1717949233151,-296.77241989,0.00017185,2]
[328879925,1717949233174,-3648.06605485,0.00017185,2]
[328879932,1717949432100,-208.18338657,0.0001717,2]
[328879933,1717949432111,-176.48295371,0.00017171,2]
[328879934,1717949432121,-2822.20152753,0.00017171,2]
[328879935,1717949432131,-334.17412539,0.00017172,2]
[328879936,1717949432141,-3018.65921685,0.00017172,2]
[328879937,1717949432150,-155.0,0.00017173,2]
[328879938,1717949432160,-327.14316147,0.00017173,2]
[328879939,1717949432170,-407.56315179,0.00017173,2]
[328879940,1717949432179,-238.17862197,0.00017174,2]
[328879941,1717949432189,-689.0,0.00017184,2]
[328879942,1717949432199,-63.81845029,0.00017259,2]
[328879943,1717949432220,-5518.72018743,0.00017259,2]
[328879944,1717949432403,-1806.68,0.00017534,2]
[328879945,1717949432413,-303.46901257,0.000196,2]
[328879946,1717949432536,-1817.53098743,0.000196,2]
[328879947,1717949432547,-615.0,0.000196,2]
[328879948,1717949432557,-324.44,0.00019806,2]
[328879949,1717949432569,-247.815,0.00019914,2]
[328879950,1717949432580,-168.52,0.00019914,2]
[328879951,1717949432590,-364.29041403,0.00020003,2]
[328879952,1717949432599,-226.67450997,0.000201,2]
[328879953,1717949432611,-20242.955,0.00020323,2]
[328879954,1717949432622,-250.0,0.00020467,2]
[328879955,1717949432632,-250.0,0.00020637,2]
[328879956,1717949432644,-1337.09,0.00020898,2]
[328879957,1717949432654,-685.9422,0.00021681,2]
[328879958,1717949432664,-184.26629588,0.00021681,2]
[328879959,1717949432674,-322.32472637,0.00021681,2]
[328879960,1717949432685,-587.52744063,0.00021681,2]
[328879961,1717949432695,-163.87867132,0.00021771,2]
[328879962,1717949432705,-156.5803339,0.00021779,2]
[328879963,1717949432715,-450.41417782,0.00021779,2]
[328879964,1717949432726,-1250.35702426,0.00021779,2]
[328879965,1717949432737,-416.19641202,0.0002178,2]
[328879966,1717949432747,-192.16667732,0.0002178,2]
[328879967,1717949432757,-175850.24797184,0.00021781,7]
[328879968,1717949432846,-10435.91815547,0.00021781,7]
[328879969,1717949432859,-909.3594811,0.00021781,7]
[328879970,1717949432916,-87679.31149105,0.00021781,7]
[328880188,1717949438214,-384.39306398,0.00021781,7]
[328880189,1717949438481,-1021.78814945,0.00021781,7]
[328880190,1717949438773,-2315.60076617,0.00021781,7]
[328880191,1717949438848,-500.6964493,0.00021781,7]
[328880192,1717949438860,-14325.4,0.00021781,7]
[328880502,1717949441924,-2597.58896844,0.00021781,7]
[328880504,1717949441937,-345.73566644,0.00021781,7]
[328880506,1717949441949,-484.66026455,0.00021781,7]
[328880508,1717949441962,-251.4089775,0.00021781,7]
[328880510,1717949441974,-369.26000001,0.00021781,7]
[328880525,1717949442119,-5888.55715,0.00021781,7]
[328880527,1717949442132,-15157.990425,0.00021781,7]
[328880532,1717949442192,-5509.64571655,0.00021781,7]
[328880677,1717949443898,-343024.09513815,0.00021781,7]
[328880678,1717949443908,-7629.04732687,0.00021781,7]
[328880679,1717949443919,-219.26,0.00021918,2]
[328880680,1717949443929,-250.0,0.00021918,2]
[328880681,1717949443939,-405.17,0.00021918,2]
[328880682,1717949443949,-324.44,0.0002207,2]
[328880683,1717949443959,-587.52744056,0.00022855,2]
[328880684,1717949443970,-184.26629586,0.00024021,2]
[328880685,1717949443981,-587.52744056,0.00024029,2]
[328880686,1717949443991,-173.76,0.0002423,2]
[328880687,1717949444001,-324.44,0.00024334,2]
[328880688,1717949444011,-195.46,0.00024384,2]
[328880689,1717949444022,-153.37,0.00024384,2]
[328880690,1717949444032,-559.63072855,0.00024798,2]
[328880691,1717949444042,-559.63072853,0.00024798,2]
[328880692,1717949444052,-559.63072853,0.00024798,2]
[328880693,1717949444061,-559.63072853,0.00024798,2]
[328880694,1717949444071,-883.66261707,0.00024799,2]
[328880695,1717949444080,-883.66261701,0.00024799,2]
[328880696,1717949444090,-883.66261701,0.00024799,2]
[328880697,1717949444100,-883.66261701,0.00024799,2]
[328880698,1717949444111,-1201.84707449,0.00025,2]
[328880699,1717949444123,-14470.49920023,0.00025,2]
[328880700,1717949444134,-1276.95996531,0.00025,2]
[328880701,1717949444144,-1250.0,0.00025,2]
[328880702,1717949444154,-587.52744056,0.00025203,2]
[328880703,1717949444165,-559.63072853,0.00025334,2]
[328880704,1717949444175,-883.66261701,0.00025334,2]